fUSD/lending_fUSD_20240803
["ID","MTS","AMOUNT","RATE_DAILY","PERIOD"]
[333962851,1722649874845,-2308.17,0.0001726,2]
[333962852,1722649874854,-500.0,0.0001726,2]
[333962853,1722649874864,-4608.08,0.0001726,2]
[333962854,1722649874874,-500.0,0.0001726,2]
[333962855,1722649874883,-730.54,0.0001726,2]
[333962856,1722649874893,-1068.05,0.0001726,2]
[333962857,1722649874903,-2347.15,0.0001726,2]
[333962858,1722649874912,-500.0,0.0001726,2]
[333962859,1722649874922,-1306.81,0.0001726,2]
[333962860,1722649874931,-577.32,0.0001726,2]
[333962861,1722649874941,-500.0,0.0001726,2]
[333962862,1722649874951,-1235.54,0.0001726,2]
[333962863,1722649874960,-914.78,0.0001726,2]
[333962864,1722649874970,-2077.38,0.0001726,2]
[333962865,1722649874980,-1655.38,0.0001726,2]
[333962866,1722649874990,-7387.69,0.0001726,2]
[333962867,1722649875000,-500.0,0.0001726,2]
[333962868,1722649875010,-500.0,0.0001726,2]
[333962869,1722649875020,-664.56,0.0001726,2]
[333962870,1722649875030,-4811.33,0.0001726,2]
[333962871,1722649875040,-500.0,0.0001726,2]
[333962872,1722649875050,-500.0,0.0001726,2]
[333962873,1722649875059,-1423.38,0.0001726,2]
[333962874,1722649875069,-1614.1,0.0001726,2]
[333962875,1722649875079,-511.65,0.0001726,2]
[333962876,1722649875089,-500.0,0.0001726,2]
[333962877,1722649875101,-9846.06,0.0001726,2]
[333962878,1722649875111,-576.23,0.0001726,2]
[333962879,1722649875122,-1264.8,0.0001726,2]
[333962880,1722649875133,-500.0,0.0001726,2]
[333962881,1722649875143,-1329.65,0.0001726,2]
[333962882,1722649875152,-500.0,0.0001726,2]
[333962883,1722649875162,-909.25,0.0001726,2]
[333962884,1722649875172,-518.27,0.0001726,2]
[333962885,1722649875181,-500.0,0.0001726,2]
[333962886,1722649875191,-500.0,0.0001726,2]
[333962887,1722649875201,-500.0,0.0001726,2]
[333962888,1722649875212,-964.25,0.0001726,2]
[333962889,1722649875222,-500.0,0.0001726,2]
[333962890,1722649875231,-1757.43,0.0001726,2]
[333962891,1722649875242,-551.22,0.0001726,2]
[333962892,1722649875251,-897.36,0.0001726,2]
[333962893,1722649875261,-500.0,0.0001726,2]
[333962894,1722649875271,-500.0,0.0001726,2]
[333962895,1722649875281,-500.0,0.0001726,2]
[333962896,1722649875290,-1771.89,0.0001726,2]
[333962897,1722649875300,-500.0,0.0001726,2]
[333962898,1722649875310,-1233.86,0.0001726,2]
[333962899,1722649875319,-5320.19,0.0001726,2]
[333962900,1722649875329,-698.86,0.0001726,2]
[333962901,1722649875339,-500.0,0.0001726,2]
[333962902,1722649875349,-2120.84,0.0001726,2]
[333962903,1722649875359,-673.59,0.0001726,2]
[333962904,1722649875369,-500.0,0.0001726,2]
[333962905,1722649875389,-521.13,0.0001726,2]
[333962906,1722649875399,-500.0,0.0001726,2]
[333962907,1722649875408,-500.0,0.0001726,2]
[333962908,1722649875419,-1194.08,0.0001726,2]
[333962909,1722649875430,-9728.43,0.0001726,2]
[333962910,1722649875440,-500.0,0.0001726,2]
[333962911,1722649875451,-500.0,0.0001726,2]
[333962912,1722649875461,-1495.7,0.0001726,2]
[333962913,1722649875474,-1589.08,0.0001726,2]
[333962914,1722649875483,-2677.38,0.0001726,2]
[333962915,1722649875493,-942.11,0.0001726,2]
[333962916,1722649875502,-500.0,0.0001726,2]
[333962917,1722649875511,-2478.7,0.0001726,2]
[333962918,1722649875521,-332.198207,0.0001726,2]
[333962919,1722649875530,-670.56,0.0001726,2]
[333962920,1722649875539,-749.9,0.0001726,2]
[333962921,1722649875548,-500.0,0.0001726,2]
[333962922,1722649875558,-1946.32,0.0001726,2]
[333962923,1722649875568,-500.0,0.0001726,2]
[333962924,1722649875577,-3580.3,0.0001726,2]
[333962925,1722649875588,-500.0,0.0001726,2]
[333962926,1722649875597,-500.0,0.0001726,2]
[333962927,1722649875607,-1055.1,0.0001726,2]
[333962928,1722649875616,-1667.66,0.0001726,2]
[333962929,1722649875626,-500.0,0.0001726,2]
[333962930,1722649875636,-729.57,0.0001726,2]
[333962931,1722649875646,-704.86,0.0001726,2]
[333962932,1722649875656,-500.0,0.0001726,2]
[333962933,1722649875665,-500.0,0.0001726,2]
[333962934,1722649875675,-801.24,0.0001726,2]
[333962935,1722649875685,-5780.91,0.0001726,2]
[333962936,1722649875695,-500.0,0.0001726,2]
[333962937,1722649875704,-500.0,0.0001726,2]
[333962938,1722649875714,-500.0,0.0001726,2]
[333962939,1722649875724,-1402.25,0.0001726,2]
[333962940,1722649875733,-1752.51,0.0001726,2]
[333962941,1722649875744,-500.0,0.0001726,2]
[333962942,1722649875753,-2252.56,0.0001726,2]
[333962943,1722649875763,-8312.09,0.0001726,2]
[333962944,1722649875773,-5108.78,0.0001726,2]
[333962945,1722649875783,-632.48,0.0001726,2]
[333962946,1722649875792,-1945.92,0.0001726,2]
[333962947,1722649875802,-1759.83,0.0001726,2]
[333962948,1722649875811,-500.0,0.0001726,2]
[333962949,1722649875821,-1257.19,0.0001726,2]
[333962950,1722649875831,-1754.89,0.0001726,2]
[333962951,1722649875841,-1014.46,0.0001726,2]
[333962952,1722649875851,-2716.17,0.0001726,2]
[333962953,1722649875860,-501.08,0.0001726,2]
[333962954,1722649875870,-690.59,0.0001726,2]
[333962955,1722649875879,-4139.99,0.0001726,2]
[333962956,1722649875889,-3568.54,0.0001726,2]
[333962957,1722649875899,-151.0,0.0001726,2]
[333962958,1722649875909,-151.76157,0.0001726,2]
[333962959,1722649875918,-3159.25,0.0001726,2]
[333962960,1722649875928,-2890.09,0.0001726,2]
[333962961,1722649875937,-500.0,0.0001726,2]
[333962962,1722649875947,-500.0,0.0001726,2]
[333962963,1722649875956,-500.0,0.0001726,2]
[333962964,1722649875965,-3090.52,0.0001726,2]
[333962965,1722649875976,-500.0,0.0001726,2]
[333962966,1722649875985,-1654.87,0.0001726,2]
[333962967,1722649875995,-151.284625,0.0001726,2]
[333962968,1722649876004,-512.54,0.0001726,2]
[333962969,1722649876014,-1751.95,0.0001726,2]
[333962970,1722649876023,-628.31,0.0001726,2]
[333962971,1722649876033,-531.46,0.0001726,2]
[333962972,1722649876043,-1139.17,0.0001726,2]
[333962973,1722649876052,-624.76,0.0001726,2]
[333962974,1722649876062,-5392.49,0.0001726,2]
[333962975,1722649876071,-500.0,0.0001726,2]
[333962976,1722649876081,-1394.06,0.0001726,2]
[333962977,1722649876091,-2816.99,0.0001726,2]
[333962978,1722649876100,-557.27,0.0001726,2]
[333962979,1722649876109,-3194.59,0.0001726,2]
[333962980,1722649876120,-235.07474481,0.0001726,2]
[333962981,1722649876129,-427.28312128,0.0001726,2]
[333962982,1722649876138,-674.33,0.0001726,2]
[333962983,1722649876148,-1707.62,0.0001726,2]
[333962984,1722649876159,-500.0,0.0001726,2]
[333962985,1722649876168,-500.0,0.0001726,2]
[333962986,1722649876177,-500.0,0.0001726,2]
[333962987,1722649876187,-500.0,0.0001726,2]
[333962988,1722649876196,-500.0,0.0001726,2]
[333962989,1722649876205,-607.51,0.0001726,2]
[333962990,1722649876214,-500.0,0.0001726,2]
[333962991,1722649876224,-1698.11,0.0001726,2]
[333962992,1722649876233,-555.27,0.0001726,2]
[333962993,1722649876243,-513.71,0.0001726,2]
[333962994,1722649876252,-2285.28,0.0001726,2]
[333962995,1722649876262,-151.0,0.0001726,2]
[333962996,1722649876271,-636.34,0.0001726,2]
[333962997,1722649876281,-2927.51,0.0001726,2]
[333962998,1722649876290,-670.27,0.0001726,2]
[333962999,1722649876300,-2357.53,0.0001726,2]
[333963000,1722649876310,-500.0,0.0001726,2]
[333963001,1722649876319,-500.0,0.0001726,2]
[333963002,1722649876329,-3352.6,0.0001726,2]
[333963003,1722649876338,-500.0,0.0001726,2]
[333963004,1722649876348,-2944.33,0.0001726,2]
[333963005,1722649876357,-1872.51,0.0001726,2]
[333963006,1722649876367,-261.602985,0.0001726,2]
[333963007,1722649876377,-3194.11,0.0001726,2]
[333963008,1722649876388,-1489.08,0.0001726,2]
[333963009,1722649876398,-500.0,0.0001726,2]
[333963010,1722649876408,-500.0,0.0001726,2]
[333963011,1722649876417,-414.9,0.0001726,2]
[333963012,1722649876427,-521.80034077,0.0001726,2]
[333963013,1722649876438,-500.0,0.0001726,2]
[333963014,1722649876447,-253.45978724,0.0001726,2]
[333963015,1722649876457,-500.0,0.0001726,2]
[333963016,1722649876468,-500.67,0.0001726,2]
[333963017,1722649876477,-1683.64,0.0001726,2]
[333963018,1722649876487,-500.0,0.0001726,2]
[333963019,1722649876496,-151.0,0.0001726,2]
[333963020,1722649876506,-500.0,0.0001726,2]
[333963021,1722649876515,-4714.78,0.0001726,2]
[333963022,1722649876525,-2696.98,0.0001726,2]
[333963023,1722649876535,-2707.61,0.0001726,2]
[333963024,1722649876544,-1483.81,0.0001726,2]
[333963025,1722649876647,-500.0,0.0001726,2]
[333963026,1722649876657,-500.0,0.0001726,2]
[333963027,1722649876667,-500.0,0.0001726,2]
[333963028,1722649876676,-1795.85,0.0001726,2]
[333963029,1722649876686,-1711.65,0.0001726,2]
[333963030,1722649876696,-500.0,0.0001726,2]
[333963031,1722649876705,-151.0,0.0001726,2]
[333963032,1722649876714,-500.0,0.0001726,2]
[333963033,1722649876723,-500.0,0.0001726,2]
[333963034,1722649876733,-151.0,0.0001726,2]
[333963035,1722649876742,-5096.55,0.0001726,2]
[333963036,1722649876751,-500.0,0.0001726,2]
[333963037,1722649876761,-1063.77,0.0001726,2]
[333963038,1722649876770,-1669.51,0.0001726,2]
[333963039,1722649876779,-500.0,0.0001726,2]
[333963040,1722649876789,-500.0,0.0001726,2]
[333963041,1722649876798,-4399.85,0.0001726,2]
[333963042,1722649876808,-500.0,0.0001726,2]
[333963043,1722649876817,-587.43,0.0001726,2]
[333963044,1722649876828,-500.0,0.0001726,2]
[333963045,1722649876837,-1091.44,0.0001726,2]
[333963046,1722649876847,-500.0,0.0001726,2]
[333963047,1722649876858,-5398.34,0.0001726,2]
[333963048,1722649876869,-500.0,0.0001726,2]
[333963049,1722649876878,-2070.96,0.0001726,2]
[333963050,1722649876888,-796.18,0.0001726,2]
[333963051,1722649876897,-3773.69,0.0001726,2]
[333963052,1722649876906,-500.0,0.0001726,2]
[333963053,1722649876916,-1711.3,0.0001726,2]
[333963054,1722649876925,-624.97,0.0001726,2]
[333963055,1722649876934,-151.433011,0.0001726,2]
[333963056,1722649876943,-1561.23,0.0001726,2]
[333963057,1722649876953,-1544.34,0.0001726,2]
[333963058,1722649876962,-500.0,0.0001726,2]
[333963059,1722649876973,-3340.67,0.0001726,2]
[333963060,1722649876982,-500.0,0.0001726,2]
[333963061,1722649876992,-502.81,0.0001726,2]
[333963062,1722649877002,-1886.92,0.0001726,2]
[333963063,1722649877011,-1131.33,0.0001726,2]
[333963064,1722649877021,-3876.52,0.0001726,2]
[333963065,1722649877030,-500.0,0.0001726,2]
[333963066,1722649877040,-500.0,0.0001726,2]
[333963067,1722649877050,-1118.15,0.0001726,2]
[333963068,1722649877060,-1761.5,0.0001726,2]
[333963069,1722649877069,-531.68,0.0001726,2]
[333963070,1722649877078,-11118.7,0.0001726,2]
[333963071,1722649877087,-594.62267769,0.0001726,2]
[333963072,1722649877097,-3921.71,0.0001726,2]
[333963073,1722649877106,-2241.61,0.0001726,2]
[333963074,1722649877115,-614.89,0.0001726,2]
[333963075,1722649877125,-500.0,0.0001726,2]
[333963076,1722649877148,-5408.66,0.0001726,2]
[333963077,1722649877157,-524.7,0.0001726,2]
[333963078,1722649877166,-1064.95,0.0001726,2]
[333963079,1722649877176,-540.43,0.0001726,2]
[333963080,1722649877186,-500.0,0.0001726,2]
[333963081,1722649877196,-1635.52,0.0001726,2]
[333963082,1722649877207,-500.0,0.0001726,2]
[333963083,1722649877216,-521.67,0.0001726,2]
[333963084,1722649877226,-2659.06,0.0001726,2]
[333963085,1722649877235,-1041.83,0.0001726,2]
[333963086,1722649877245,-1865.74,0.0001726,2]
[333963087,1722649877254,-882.92,0.0001726,2]
[333963088,1722649877263,-572.89,0.0001726,2]
[333963089,1722649877272,-500.0,0.0001726,2]
[333963090,1722649877282,-2815.68,0.0001726,2]
[333963091,1722649877291,-596.08771028,0.0001726,2]
[333963092,1722649877300,-9208.0,0.0001726,2]
[333963093,1722649877310,-422.02227749,0.00017366,2]
[333963094,1722649877320,-154.59494864,0.00017366,2]
[333963095,1722649877329,-4777.22467371,0.00017386,2]
[333963096,1722649877338,-784.76655022,0.00017434,2]
[333963097,1722649877346,-151.0,0.00017439,2]
[333963098,1722649877355,-1255.0,0.00017494,2]
[333963099,1722649877363,-590.004,0.00017494,2]
[333963100,1722649877371,-1582.0,0.00017494,2]
[333963101,1722649877382,-1230.976,0.00017494,2]
[333963102,1722649877393,-432.406,0.00017494,2]
[333963103,1722649877402,-450.195,0.00017494,2]
[333963104,1722649877411,-150.0,0.00017494,2]
[333963105,1722649877421,-811.0,0.00017494,2]
[333963106,1722649877430,-401.338,0.00017494,2]
[333963107,1722649877439,-550.0,0.00017494,2]
[333963108,1722649877448,-150.0,0.00017494,2]
[333963109,1722649877458,-1370.0,0.00017494,2]
[333963110,1722649877468,-5127.0,0.00017494,2]
[333963111,1722649877478,-723.324,0.00017494,2]
[333963112,1722649877488,-1141.448,0.00017494,2]
[333963113,1722649877497,-150.0,0.00017494,2]
[333963114,1722649877507,-150.0,0.00017494,2]
[333963115,1722649877516,-1203.0,0.00017494,2]
[333963116,1722649877526,-150.0,0.00017494,2]
[333963117,1722649877535,-1015.0,0.000175,2]
[333963118,1722649877544,-1088.90185226,0.00017522,2]
[333963119,1722649877553,-500.0,0.00017534,2]
[333963120,1722649877562,-500.0,0.00017534,2]
[333963121,1722649877571,-610.06,0.00017534,2]
[333963122,1722649877582,-500.0,0.00017534,2]
[333963123,1722649877591,-500.0,0.00017534,2]
[333963124,1722649877600,-500.0,0.00017534,2]
[333963125,1722649877610,-500.0,0.00017534,2]
[333963126,1722649877619,-500.0,0.00017534,2]
[333963127,1722649877635,-1261.99,0.00017534,2]
[333963128,1722649877650,-500.0,0.00017534,2]
[333963129,1722649877660,-151.0,0.00017534,2]
[333963130,1722649877669,-901.67,0.00017534,2]
[333963131,1722649877678,-500.0,0.00017534,2]
[333963132,1722649877688,-500.0,0.00017534,2]
[333963133,1722649877696,-500.0,0.00017534,2]
[333963134,1722649877706,-744.47,0.00017534,2]
[333963135,1722649877715,-742.73,0.00017534,2]
[333963136,1722649877724,-833.64,0.00017534,2]
[333963137,1722649877733,-680.02,0.00017534,2]
[333963138,1722649877742,-500.0,0.00017534,2]
[333963139,1722649877751,-511.63,0.00017534,2]
[333963140,1722649877761,-500.0,0.00017534,2]
[333963141,1722649877770,-639.16,0.00017534,2]
[333963142,1722649877780,-500.0,0.00017534,2]
[333963143,1722649877789,-500.0,0.00017534,2]
[333963144,1722649877799,-500.0,0.00017534,2]
[333963145,1722649877808,-500.0,0.00017534,2]
[333963146,1722649877817,-500.0,0.00017534,2]
[333963147,1722649877826,-500.0,0.00017534,2]
[333963148,1722649877835,-500.0,0.00017534,2]
[333963149,1722649877844,-500.0,0.00017534,2]
[333963150,1722649877853,-781.45,0.00017534,2]
[333963151,1722649877863,-500.0,0.00017534,2]
[333963152,1722649877872,-500.0,0.00017534,2]
[333963153,1722649877881,-754.73,0.00017534,2]
[333963154,1722649877891,-343.96095632,0.00017534,2]
[333963155,1722649877900,-500.0,0.00017534,2]
[333963156,1722649877910,-500.0,0.00017534,2]
[333963157,1722649877919,-1260.28,0.00017534,2]
[333963158,1722649877928,-500.0,0.00017534,2]
[333963159,1722649877938,-500.0,0.00017534,2]
[333963160,1722649877947,-500.0,0.00017534,2]
[333963161,1722649877956,-526.81,0.00017534,2]
[333963162,1722649877966,-923.16,0.00017534,2]
[333963163,1722649877975,-522.19,0.00017534,2]
[333963164,1722649877984,-500.0,0.00017534,2]
[333963165,1722649877993,-500.0,0.00017534,2]
[333963166,1722649878003,-546.65,0.00017534,2]
[333963167,1722649878013,-500.0,0.00017534,2]
[333963168,1722649878023,-743.82,0.00017534,2]
[333963169,1722649878032,-500.0,0.00017534,2]
[333963170,1722649878042,-671.57,0.00017534,2]
[333963171,1722649878051,-500.0,0.00017534,2]
[333963172,1722649878061,-776.24,0.00017534,2]
[333963173,1722649878071,-500.0,0.00017534,2]
[333963174,1722649878080,-500.0,0.00017534,2]
[333963175,1722649878090,-600.62,0.00017534,2]
[333963176,1722649878099,-500.0,0.00017534,2]
[333963177,1722649878109,-500.0,0.00017534,2]
[333963178,1722649878118,-500.0,0.00017534,2]
[333963179,1722649878132,-500.0,0.00017534,2]
[333963180,1722649878148,-977.68,0.00017534,2]
[333963181,1722649878157,-500.0,0.00017534,2]
[333963182,1722649878167,-500.0,0.00017534,2]
[333963183,1722649878177,-1153.34,0.00017534,2]
[333963184,1722649878186,-521.43,0.00017534,2]
[333963185,1722649878196,-661.44,0.00017534,2]
[333963186,1722649878206,-500.0,0.00017534,2]
[333963187,1722649878215,-547.63,0.00017534,2]
[333963188,1722649878224,-500.0,0.00017534,2]
[333963189,1722649878234,-988.23,0.00017534,2]
[333963190,1722649878243,-500.0,0.00017534,2]
[333963191,1722649878252,-500.0,0.00017534,2]
[333963192,1722649878261,-652.46,0.00017534,2]
[333963193,1722649878271,-500.0,0.00017534,2]
[333963194,1722649878280,-500.0,0.00017534,2]
[333963195,1722649878289,-1200.13,0.00017534,2]
[333963196,1722649878298,-500.0,0.00017534,2]
[333963197,1722649878308,-576.36,0.00017534,2]
[333963198,1722649878317,-752.54,0.00017534,2]
[333963199,1722649878327,-604.08,0.00017534,2]
[333963200,1722649878337,-500.0,0.00017534,2]
[333963201,1722649878347,-500.0,0.00017534,2]
[333963202,1722649878356,-500.0,0.00017534,2]
[333963203,1722649878365,-582.22,0.00017534,2]
[333963204,1722649878375,-679.96,0.00017534,2]
[333963205,1722649878399,-606.57,0.00017534,2]
[333963206,1722649878408,-500.0,0.00017534,2]
[333963207,1722649878418,-1327.37,0.00017534,2]
[333963208,1722649878427,-625.77,0.00017534,2]
[333963209,1722649878438,-975.76,0.00017534,2]
[333963210,1722649878448,-957.48,0.00017534,2]
[333963211,1722649878457,-754.29,0.00017534,2]
[333963212,1722649878468,-564.48,0.00017534,2]
[333963213,1722649878479,-500.0,0.00017534,2]
[333963214,1722649878488,-500.0,0.00017534,2]
[333963215,1722649878498,-507.44,0.00017534,2]
[333963216,1722649878508,-515.06,0.00017534,2]
[333963217,1722649878518,-500.0,0.00017534,2]
[333963218,1722649878528,-500.0,0.00017534,2]
[333963219,1722649878538,-608.81,0.00017534,2]
[333963220,1722649878548,-500.0,0.00017534,2]
[333963221,1722649878557,-500.0,0.00017534,2]
[333963222,1722649878567,-500.0,0.00017534,2]
[333963223,1722649878576,-1019.91,0.00017534,2]
[333963224,1722649878585,-874.04,0.00017534,2]
[333963225,1722649878595,-1155.96,0.00017534,2]
[333963226,1722649878604,-500.0,0.00017534,2]
[333963227,1722649878614,-500.0,0.00017534,2]
[333963228,1722649878623,-933.57,0.00017534,2]
[333963229,1722649878639,-857.45,0.00017534,2]
[333963230,1722649878648,-500.0,0.00017534,2]
[333963231,1722649878657,-1096.96,0.00017534,2]
[333963232,1722649878667,-609.25,0.00017534,2]
[333963233,1722649878677,-699.35,0.00017534,2]
[333963234,1722649878687,-500.0,0.00017534,2]
[333963235,1722649878697,-568.48,0.00017534,2]
[333963236,1722649878706,-500.0,0.00017534,2]
[333963237,1722649878716,-575.56,0.00017534,2]
[333963238,1722649878726,-715.1,0.00017534,2]
[333963239,1722649878736,-286.259297,0.00017534,2]
[333963240,1722649878745,-735.11,0.00017534,2]
[333963241,1722649878755,-990.8,0.00017534,2]
[333963242,1722649878765,-500.0,0.00017534,2]
[333963243,1722649878774,-551.0,0.00017534,2]
[333963244,1722649878783,-500.0,0.00017534,2]
[333963245,1722649878793,-1217.14,0.00017534,2]
[333963246,1722649878802,-1351.15,0.00017534,2]
[333963247,1722649878811,-563.32,0.00017534,2]
[333963248,1722649878821,-382.82554972,0.00017534,2]
[333963249,1722649878830,-500.0,0.00017534,2]
[333963250,1722649878839,-582.17,0.00017534,2]
[333963251,1722649878849,-500.0,0.00017534,2]
[333963252,1722649878858,-500.0,0.00017534,2]
[333963253,1722649878868,-500.0,0.00017534,2]
[333963254,1722649878881,-500.0,0.00017534,2]
[333963255,1722649878891,-1436.37,0.00017534,2]
[333963256,1722649878900,-500.0,0.00017534,2]
[333963257,1722649878910,-834.82,0.00017534,2]
[333963258,1722649878919,-500.0,0.00017534,2]
[333963259,1722649878928,-689.94,0.00017534,2]
[333963260,1722649878938,-500.0,0.00017534,2]
[333963261,1722649878947,-500.0,0.00017534,2]
[333963262,1722649878957,-511.91,0.00017534,2]
[333963263,1722649878967,-259.25292777,0.00017534,2]
[333963264,1722649878976,-500.0,0.00017534,2]
[333963265,1722649878986,-989.44,0.00017534,2]
[333963266,1722649878996,-500.0,0.00017534,2]
[333963267,1722649879006,-1740.01,0.00017534,2]
[333963268,1722649879015,-500.0,0.00017534,2]
[333963269,1722649879025,-500.0,0.00017534,2]
[333963270,1722649879035,-500.0,0.00017534,2]
[333963271,1722649879044,-500.0,0.00017534,2]
[333963272,1722649879053,-500.0,0.00017534,2]
[333963273,1722649879063,-772.4,0.00017534,2]
[333963274,1722649879073,-500.0,0.00017534,2]
[333963275,1722649879082,-1666.43,0.00017534,2]
[333963276,1722649879092,-1110.41,0.00017534,2]
[333963277,1722649879102,-1146.98,0.00017534,2]
[333963278,1722649879112,-500.0,0.00017534,2]
[333963279,1722649879121,-500.0,0.00017534,2]
[333963280,1722649879138,-767.6,0.00017534,2]
[333963281,1722649879147,-1061.97,0.00017534,2]
[333963282,1722649879157,-609.26,0.00017534,2]
[333963283,1722649879166,-2176.12,0.00017534,2]
[333963284,1722649879175,-500.0,0.00017534,2]
[333963285,1722649879185,-500.0,0.00017534,2]
[333963286,1722649879194,-761.65,0.00017534,2]
[333963287,1722649879204,-500.0,0.00017534,2]
[333963288,1722649879213,-1436.3,0.00017534,2]
[333963289,1722649879223,-500.0,0.00017534,2]
[333963290,1722649879233,-542.56,0.00017534,2]
[333963291,1722649879243,-1767.06,0.00017534,2]
[333963292,1722649879252,-500.0,0.00017534,2]
[333963293,1722649879262,-2131.17,0.00017534,2]
[333963294,1722649879273,-774.23,0.00017534,2]
[333963295,1722649879283,-548.1,0.00017534,2]
[333963296,1722649879293,-570.01,0.00017534,2]
[333963297,1722649879303,-500.0,0.00017534,2]
[333963298,1722649879316,-948.07,0.00017534,2]
[333963299,1722649879326,-765.48,0.00017534,2]
[333963300,1722649879335,-594.04,0.00017534,2]
[333963301,1722649879345,-369.02182125,0.00017534,2]
[333963302,1722649879354,-595.35,0.00017534,2]
[333963303,1722649879363,-585.51089716,0.00017534,2]
[333963304,1722649879373,-850.52,0.00017534,2]
[333963305,1722649879392,-868.11,0.00017534,2]
[333963306,1722649879401,-925.64,0.00017534,2]
[333963307,1722649879410,-500.0,0.00017534,2]
[333963308,1722649879420,-697.58,0.00017534,2]
[333963309,1722649879430,-500.0,0.00017534,2]
[333963310,1722649879440,-672.84,0.00017534,2]
[333963311,1722649879449,-572.83,0.00017534,2]
[333963312,1722649879459,-1538.94,0.00017534,2]
[333963313,1722649879470,-1502.0,0.00017534,2]
[333963314,1722649879479,-1727.54,0.00017534,2]
[333963315,1722649879489,-500.0,0.00017534,2]
[333963316,1722649879499,-500.0,0.00017534,2]
[333963317,1722649879508,-1011.16,0.00017534,2]
[333963318,1722649879517,-500.0,0.00017534,2]
[333963319,1722649879527,-560.79,0.00017534,2]
[333963320,1722649879536,-598.74,0.00017534,2]
[333963321,1722649879545,-817.93,0.00017534,2]
[333963322,1722649879555,-554.11,0.00017534,2]
[333963323,1722649879565,-500.0,0.00017534,2]
[333963324,1722649879575,-500.0,0.00017534,2]
[333963325,1722649879584,-500.0,0.00017534,2]
[333963326,1722649879593,-1173.09,0.00017534,2]
[333963327,1722649879603,-1792.46,0.00017534,2]
[333963328,1722649879612,-1162.14,0.00017534,2]
[333963329,1722649879621,-777.33,0.00017534,2]
[333963330,1722649879638,-563.21,0.00017534,2]
[333963331,1722649879647,-1353.34,0.00017534,2]
[333963332,1722649879657,-876.7,0.00017534,2]
[333963333,1722649879666,-1615.31,0.00017534,2]
[333963334,1722649879677,-500.0,0.00017534,2]
[333963335,1722649879687,-2034.6,0.00017534,2]
[333963336,1722649879696,-500.0,0.00017534,2]
[333963337,1722649879706,-720.8,0.00017534,2]
[333963338,1722649879715,-500.0,0.00017534,2]
[333963339,1722649879726,-1125.24,0.00017534,2]
[333963340,1722649879735,-500.0,0.00017534,2]
[333963341,1722649879744,-500.0,0.00017534,2]
[333963342,1722649879753,-1443.69,0.00017534,2]
[333963343,1722649879763,-500.0,0.00017534,2]
[333963344,1722649879773,-500.0,0.00017534,2]
[333963345,1722649879782,-1301.45,0.00017534,2]
[333963346,1722649879791,-500.0,0.00017534,2]
[333963347,1722649879801,-151.0,0.00017534,2]
[333963348,1722649879810,-500.0,0.00017534,2]
[333963349,1722649879820,-500.0,0.00017534,2]
[333963350,1722649879829,-500.0,0.00017534,2]